bitfinex/quotes_ETHUSD_20220101
["timestamp","ask_amount","ask_price","bid_price","bid_amount"]
[1641044813413,7.40581994,3718.5,3718.4,0.00400363]
[1641044815259,6.03886699,3718.5,3718.4,0.00400363]
[1641044819908,3.44522104,3718.5,3718.4,0.00400363]
[1641044820311,5.8340001,3718.5,3718.4,0.00400363]
[1641044821114,3.44522104,3718.5,3718.4,0.00400363]
[1641044822867,5.76442429,3718.5,3718.4,0.00400363]
[1641044823669,3.44522104,3718.5,3718.4,0.00400363]
[1641044824668,5.7677391,3718.5,3718.4,0.00400363]
[1641044824869,5.81960974,3718.5,3718.4,0.00400363]
[1641044826118,3.44522104,3718.5,3718.4,0.00400363]
[1641044826318,3.05822104,3718.5,3718.4,0.00400363]
[1641044826820,2.95822104,3718.5,3718.4,0.00400363]
[1641044829219,5.33762296,3718.5,3718.4,0.00400363]
[1641044829455,5.30687118,3718.5,3718.4,0.00400363]
[1641044829658,2.95822104,3718.5,3718.4,0.00400363]
[1641044831762,2.95822104,3718.5,3718.4,0.00584582]
[1641044835212,2.50277868,3718.6,3718.4,4.74099247]
[1641044835411,2.50277868,3718.6,3718.5,2.99650961]
[1641044835610,2.50277868,3718.6,3718.5,3.59650961]
[1641044836214,2.50277868,3718.6,3718.5,3.98350961]
[1641044837878,2.50277868,3718.6,3718.5,0.387]
[1641044838074,2.50277868,3718.6,3718.4,0.00584582]
[1641044839674,2.50277868,3718.6,3718.5,0.01064283]
[1641044844318,2.50277868,3718.6,3718.5,2.36557424]
[1641044845260,2.50277868,3718.6,3718.5,0.01064283]
[1641044845662,2.50277868,3718.6,3718.5,2.31502001]
[1641044846268,2.50277868,3718.6,3718.5,0.01064283]
[1641044850512,5.55869561,3718.6,3718.5,0.01064283]
[1641044851713,2.50277868,3718.6,3718.5,0.01064283]
[1641044857915,5.5591702,3718.6,3718.5,0.01064283]
[1641044858913,7.88073437,3718.6,3718.5,0.01064283]
[1641044859113,5.5591702,3718.6,3718.5,0.01064283]
[1641044860363,7.86341006,3718.6,3718.5,0.01064283]
[1641044860560,5.5591702,3718.6,3718.5,0.01064283]
[1641044860766,7.890276,3718.6,3718.5,0.01064283]
[1641044860964,5.5591702,3718.6,3718.5,0.01064283]
[1641044861167,4.79686431,3718.6,3718.5,0.01064283]
[1641044861365,2.50277868,3718.6,3718.5,0.01064283]
[1641044863306,4.79081094,3718.6,3718.5,0.01064283]
[1641044863510,4.86752132,3718.6,3718.5,0.01064283]
[1641044863708,2.50277868,3718.6,3718.5,0.01064283]
[1641044863908,4.80782602,3718.6,3718.5,0.01064283]
[1641044864108,2.50277868,3718.6,3718.5,0.01064283]
[1641044864307,4.79294653,3718.6,3718.5,0.01064283]
[1641044864708,2.50277868,3718.6,3718.5,0.01064283]
[1641044864911,4.83974103,3718.6,3718.5,0.01064283]
[1641044865111,4.83961838,3718.6,3718.5,0.01064283]
[1641044865510,2.50277868,3718.6,3718.5,0.01064283]
[1641044865711,4.83598675,3718.6,3718.5,0.01064283]
[1641044866217,2.50277868,3718.6,3718.5,0.01064283]
[1641044867356,4.81097667,3718.6,3718.5,0.01064283]
[1641044867657,2.50277868,3718.6,3718.5,0.01064283]
[1641044869056,6.20769,3718.6,3718.5,0.01064283]
[1641044869259,4.7,3718.5,3718.0,0.06741497]
[1641044869458,0.67267,3718.3,3718.0,0.06741497]
[1641044869661,5.92029321,3718.2,3718.1,0.00227369]
[1641044869860,6.30729321,3718.2,3718.1,0.00227369]
[1641044870058,9.36391029,3718.2,3718.1,0.00227369]
[1641044870459,7.4641315,3718.2,3718.1,0.00227369]
[1641044871719,7.4641315,3718.2,3716.8,0.0096632]
[1641044871917,7.4641315,3718.2,3717.7,0.06741554]
[1641044872320,7.4641315,3718.2,3717.8,0.00397897]
[1641044873119,3.05661708,3718.1,3717.8,0.00397897]
[1641044873322,4.7,3718.0,3717.7,0.05291251]
[1641044873519,4.70113685,3718.0,3717.7,0.05291251]
[1641044873718,0.67383685,3718.0,3717.7,0.05291251]
[1641044874119,3.2319353,3718.0,3717.7,0.05291251]
[1641044875361,3.2319353,3718.0,3716.7,0.13819997]
[1641044875562,0.67383685,3718.0,3716.7,0.2056161]
[1641044875765,0.67383685,3718.0,3716.8,0.00568423]
[1641044876569,0.67383685,3718.0,3717.0,1.38977771]
[1641044876965,0.67383685,3718.0,3717.1,0.00397896]
[1641044877866,0.67383685,3718.0,3717.1,0.00766421]
[1641044878408,0.67383685,3718.0,3717.2,0.00341054]
[1641044887019,0.97383685,3718.0,3717.2,0.00341054]
[1641044887221,2.94487816,3717.9,3717.2,0.00341054]
[1641044887420,0.67279,3717.6,3717.2,0.00341054]
[1641044887719,3.21144525,3717.6,3717.2,0.00341054]
[1641044887924,1.0,3717.8,3717.2,0.00341054]
[1641044887925,0.0586,3717.5,3717.2,0.00341054]
[1641044888820,0.67279,3717.4,3717.2,0.00341054]
[1641044893624,3.05758289,3717.3,3717.2,0.00341054]
[1641044894024,0.67279,3717.4,3717.2,0.00341054]
[1641044894926,1.67279,3717.4,3717.2,0.00341054]
[1641044895125,0.67279,3717.4,3717.2,0.00341054]
[1641044895526,3.05776255,3717.3,3717.2,0.00341054]
[1641044897175,4.40919645,3717.3,3717.2,0.00341054]
[1641044900710,3.05776255,3717.3,3717.2,0.00341054]
[1641044902215,3.05776255,3717.3,3717.2,0.01405692]
[1641044902616,3.05776255,3717.3,3717.2,1.28140751]
[1641044903015,3.05776255,3717.3,3717.2,1.58140751]
[1641044903419,3.05776255,3717.6,3717.2,1.58140751]
[1641044903816,3.05776255,3717.6,3717.3,0.00284211]
[1641044904218,3.05776255,3717.8,3717.3,0.00284211]
[1641044904669,0.67261,3717.7,3717.3,0.00284211]
[1641044905269,3.05776255,3717.6,3717.3,0.00284211]
[1641044906473,3.05119255,3717.6,3717.3,0.00284211]
[1641044906978,0.46736,3717.7,3717.3,0.00284211]
[1641044907374,0.0588,3718.0,3717.3,0.00284211]
[1641044907375,0.67259,3717.9,3717.3,0.00284211]
[1641044907776,0.67259,3717.9,3717.4,0.01064566]
[1641044908076,0.0588,3718.0,3717.5,0.00170527]
[1641044908718,0.0588,3718.0,3717.5,0.00646926]
[1641044908913,3.9966,3718.1,3717.5,0.00646926]
[1641044909114,2.55165511,3718.2,3717.6,0.00113684]
[1641044909315,1.20022121,3718.2,3717.6,0.00113684]
[1641044909513,0.67259,3717.9,3717.6,0.00113684]
[1641044910714,1.3453403,3717.9,3717.6,0.00113684]
[1641044910918,2.37860126,3717.9,3717.6,0.00113684]
[1641044911125,5.37279,3717.7,3717.6,0.00113684]
[1641044911520,6.37279,3717.7,3717.6,0.00113684]
[1641044912368,10.81676661,3717.7,3717.6,0.00113684]
[1641044912768,12.53534994,3717.7,3717.6,0.00113684]
[1641044912970,7.83534994,3717.7,3717.6,0.00113684]
[1641044913169,7.83534994,3717.7,3717.6,0.01178207]
[1641044913769,3.47470187,3717.7,3717.6,0.01178207]
[1641044913972,2.47470187,3717.7,3717.6,0.01178207]
[1641044915575,3.47470187,3717.7,3717.6,0.01178207]
[1641044916218,1.67279,3717.7,3717.6,0.01178207]
[1641044917723,1.97279,3717.7,3717.6,0.01178207]
[1641044917927,5.2,3717.6,3716.0,0.0625]
[1641044918130,0.6729,3716.8,3716.0,0.0625]
[1641044918322,0.6729,3716.8,3716.1,0.00852635]
[1641044918722,0.6729,3716.8,3715.9,0.0096632]
[1641044918923,2.98200254,3716.8,3715.9,0.0096632]
[1641044919125,0.6729,3716.8,3715.9,0.0096632]
[1641044919324,2.97527242,3716.8,3715.9,0.0096632]
[1641044919568,0.6729,3716.8,3715.9,0.0096632]
[1641044921676,2.03159131,3716.8,3715.9,0.0096632]
[1641044921874,0.67289,3716.2,3715.9,0.0096632]
[1641044922175,3.68454661,3716.8,3715.9,0.0096632]
[1641044922374,1.41989131,3716.9,3715.9,0.0096632]
[1641044922776,0.0612,3716.9,3715.9,0.0096632]
[1641044922973,1.09387721,3716.2,3715.9,0.0096632]
[1641044927771,1.09387721,3716.2,3715.5,0.01193689]
[1641044928072,1.09387721,3716.2,3715.4,0.01250532]
[1641044928674,1.76676721,3716.2,3715.3,0.01307374]
[1641044928875,1.09387721,3716.2,3715.3,0.01307374]
[1641044930921,1.09387721,3716.2,3715.2,0.01364217]
[1641044931523,1.09387721,3716.2,3715.2,0.31364217]
[1641044931919,1.09387721,3716.2,3715.3,0.01307374]
[1641044932123,3.40632559,3716.2,3715.3,0.01307374]
[1641044932321,1.09387721,3716.2,3715.3,0.01307374]
[1641044932722,0.67294,3716.0,3715.3,0.01307374]
[1641044933321,1.09387721,3716.2,3715.3,0.01307374]
[1641044934562,1.09387721,3716.2,3715.3,0.01676073]
[1641044934768,1.76676721,3716.2,3715.3,0.01676073]
[1641044935063,1.76676721,3716.2,3715.4,0.01250532]
[1641044935463,1.09387721,3716.2,3715.4,0.01250532]
[1641044939321,0.67292,3716.1,3715.4,0.01250532]
[1641044940724,1.09387721,3716.2,3715.4,0.01250532]
[1641044942371,1.76677721,3716.2,3715.4,0.01250532]
[1641044942773,1.09387721,3716.2,3715.4,0.01250532]
[1641044945816,1.76677721,3716.2,3715.4,0.01250532]
[1641044951488,3.05812475,3716.1,3715.4,0.01250532]
[1641044955021,3.73102475,3716.1,3715.4,0.01250532]
[1641044955619,3.05812475,3716.0,3715.4,0.01250532]
[1641044957577,3.73104475,3716.0,3715.4,0.01250532]
[1641044958179,3.05812475,3715.9,3715.4,0.01250532]
[1641044958977,0.67292,3716.0,3715.4,0.01250532]
[1641044962432,3.05815245,3715.9,3715.4,0.01250532]
[1641044963430,0.67292,3716.0,3715.4,0.01250532]
[1641044964672,0.67292,3716.0,3715.5,0.01065079]
[1641044965070,0.67292,3716.0,3715.6,0.01136847]
[1641044965673,3.05817928,3715.9,3715.6,0.01136847]
[1641044965881,0.67294,3715.8,3715.6,0.01136847]
[1641044969431,3.05816161,3715.7,3715.6,0.01136847]
[1641044970231,3.05816161,3715.7,3715.6,0.0220194]
[1641044970431,3.05816161,3715.9,3715.6,0.01065093]
[1641044970834,3.05816161,3715.9,3715.7,0.01080005]
[1641044971135,3.73108161,3715.9,3715.7,0.01080005]
[1641044971733,3.05816161,3715.8,3715.7,0.01080005]
[1641044972277,5.36297311,3715.8,3715.7,0.01080005]
[1641044972476,5.36297311,3715.8,3715.3,0.00368699]
[1641044972477,4.7,3715.6,3715.3,0.00368699]
[1641044972680,3.47598988,3715.5,3715.3,0.00368699]
[1641044972876,1.0,3715.5,3715.4,0.00170527]
[1641044973176,3.4065215,3715.6,3715.4,0.00170527]
[1641044973583,0.67322,3715.2,3714.9,0.93363941]
[1641044973786,0.67322,3715.2,3714.2,0.93363941]
[1641044973985,0.67322,3715.2,3715.0,0.06945002]
[1641044974386,0.67322,3715.2,3715.1,0.00170527]
[1641044974683,0.67324,3714.7,3714.0,3.64938278]
[1641044975084,0.67324,3714.7,3714.1,0.00568423]
[1641044975483,0.67324,3714.7,3713.7,0.00795793]
[1641044975745,3.05816161,3714.6,3713.7,0.00795793]
[1641044976744,3.73136161,3714.6,3713.7,0.00795793]
[1641044977344,3.05816161,3714.5,3713.7,0.00795793]
[1641044977952,1.1984551,3713.8,3713.7,0.00795793]
[1641044978350,3.73138161,3714.5,3713.7,0.00795793]
[1641044978550,3.05816161,3714.5,3713.7,0.00795793]
[1641044978750,2.42843432,3715.0,3713.7,0.00795793]
[1641044979152,3.0592033,3714.9,3713.7,0.00795793]
[1641044979352,1.21755626,3714.1,3713.7,0.00795793]
[1641044980394,1.21755626,3714.1,3713.7,0.01164679]
[1641044980796,1.21755626,3714.1,3713.8,0.0073895]
[1641044983627,1.89084626,3714.1,3713.8,0.0073895]
[1641044986839,4.17193045,3714.1,3713.8,0.0073895]
[1641044987082,1.89084626,3714.1,3713.8,0.0073895]
[1641044987484,4.23787642,3714.1,3713.8,0.0073895]
[1641044991231,5.22341,3713.9,3713.8,0.0073895]
[1641044991528,3.07945019,3713.9,3713.8,0.0073895]
[1641044997689,4.07945019,3713.9,3713.8,0.0073895]
[1641044998823,3.07945019,3713.9,3713.8,0.0073895]
[1641045003184,3.78253209,3713.9,3713.8,0.0073895]
[1641045004584,0.67341,3713.9,3713.8,0.0073895]
[1641045005485,0.0571,3714.0,3713.8,0.0073895]
[1641045007444,0.67333,3713.9,3713.8,0.0073895]
[1641045009589,3.07873696,3713.9,3713.8,0.0073895]
[1641045009788,6.13882016,3713.9,3713.8,0.0073895]
[1641045010291,3.7334132,3713.9,3713.8,0.0073895]
[1641045010689,3.7334132,3713.9,3713.7,0.00368886]
[1641045012694,0.67333,3713.9,3713.7,0.00368886]
[1641045016738,3.06028851,3713.8,3713.7,0.00368886]
[1641045017182,3.06028851,3713.8,3713.7,0.01164679]
[1641045018382,5.34929658,3713.8,3713.7,0.01164679]
[1641045018582,3.06028851,3713.8,3713.7,0.01164679]
[1641045018782,5.34510711,3713.8,3713.7,0.01164679]
[1641045018983,5.3558746,3713.8,3713.7,0.01164679]
[1641045019284,3.06028851,3713.8,3713.7,0.01164679]
[1641045019682,5.37714422,3713.8,3713.7,0.01164679]
[1641045019884,5.37529634,3713.8,3713.7,0.01164679]
[1641045020286,4.06028851,3713.8,3713.7,0.01164679]
[1641045020930,6.34368698,3713.8,3713.7,0.01164679]
[1641045024669,4.06028851,3713.8,3713.7,0.01164679]
[1641045025076,6.32941272,3713.8,3713.7,0.01164679]
[1641045025278,4.06028851,3713.8,3713.7,0.01164679]
[1641045025979,6.40312772,3713.8,3713.7,0.01164679]
[1641045026782,4.06028851,3713.8,3713.7,0.01164679]
[1641045027181,4.06028851,3713.8,3713.7,0.02230315]
[1641045027378,6.35379081,3713.8,3713.7,0.02230315]
[1641045028237,4.06028851,3713.8,3713.7,0.02230315]
[1641045028433,6.38631709,3713.8,3713.7,0.02230315]
[1641045029636,5.38631709,3713.8,3713.7,0.02230315]
[1641045030037,6.38631709,3713.8,3713.7,0.02230315]
[1641045030840,7.73392289,3713.8,3713.7,0.02230315]
[1641045031242,6.73392289,3713.8,3713.7,0.02230315]
[1641045031640,7.73392289,3713.8,3713.7,0.02230315]
[1641045032074,6.38631709,3713.8,3713.7,0.02230315]
[1641045032974,7.73392289,3713.8,3713.7,0.02230315]
[1641045034376,7.71160089,3713.8,3713.7,1.5e-07]
[1641045035276,5.38557231,3713.8,3713.7,1.5e-07]
[1641045035478,10.55016453,3713.8,3713.7,1.5e-07]
[1641045035724,8.09311231,3713.8,3713.7,1.5e-07]
[1641045036335,6.74550651,3713.8,3713.7,1.5e-07]
[1641045036834,8.54741838,3713.8,3713.7,1.5e-07]
[1641045037637,11.18296529,3713.8,3713.7,1.5e-07]
[1641045038640,9.38105342,3713.8,3713.7,1.5e-07]
[1641045041499,9.38105342,3713.8,3713.7,0.00368914]
[1641045041698,9.20255873,3713.8,3713.7,8.914e-05]
[1641045041902,25.00847616,3713.8,3713.7,8.914e-05]
[1641045042099,25.13807616,3713.8,3713.7,8.914e-05]
[1641045042295,32.29102538,3713.8,3712.8,0.06725487]
[1641045042495,0.67372,3713.1,3712.8,0.06725487]
[1641045042696,16.127,3713.0,3712.9,0.00454738]
[1641045042897,4.7,3712.9,3712.8,0.06725487]
[1641045043095,22.127,3712.9,3712.8,0.06725487]
[1641045043325,6.4942,3712.9,3711.3,0.01207017]
[1641045043532,0.67375,3712.1,3711.3,0.01207017]
[1641045043726,0.9737425,3712.4,3711.4,0.00852636]
[1641045043925,0.9737425,3712.4,3711.6,0.0668398]
[1641045043926,3.38068957,3712.3,3711.6,0.0668398]
[1641045044325,3.38068957,3712.3,3711.7,0.00682109]
[1641045044528,1.34749,3712.0,3711.7,0.00682109]
[1641045045629,1.34749,3712.0,3710.8,0.0119369]
[1641045046234,1.41564151,3711.0,3710.8,0.0119369]
[1641045046435,1.41564151,3711.0,3710.8,6.1919369]
[1641045046975,2.28172612,3711.9,3710.9,0.01136847]
[1641045047174,3.28172612,3711.9,3710.9,0.01136847]
[1641045047374,0.06684279,3711.7,3710.9,0.01136847]
[1641045047572,0.67376,3711.4,3710.9,0.01136847]
[1641045047771,1.2236143,3711.2,3710.9,0.01136847]
[1641045048575,1.8974043,3711.2,3710.9,0.01136847]
[1641045048875,1.41438279,3711.7,3710.9,0.01136847]
[1641045049077,0.06684279,3711.7,3710.9,0.01136847]
[1641045049278,1.73442,3712.0,3710.9,0.01136847]
[1641045049677,0.67369,3711.8,3710.9,0.01136847]
[1641045050078,1.3578064,3711.5,3710.9,0.01136847]
[1641045050732,1.3578064,3711.5,3710.6,0.01307374]
[1641045050934,2.0315564,3711.5,3710.6,0.01307374]
[1641045057381,2.0315564,3711.5,3710.5,0.01364217]
[1641045062579,2.0315564,3711.5,3710.5,0.01482748]
[1641045062979,1.3578064,3711.5,3710.6,0.01307374]
[1641045067235,1.3578064,3711.5,3710.6,0.01729673]
[1641045067633,1.3578064,3711.5,3710.7,0.01250532]
[1641045072194,1.3470774,3711.5,3710.7,0.01250532]
[1641045072593,1.3470774,3711.5,3710.8,0.67365]
[1641045072994,1.2470774,3711.5,3710.9,0.01136847]
[1641045073233,1.37707032,3712.0,3710.9,0.01136847]
[1641045074436,1.24096333,3711.9,3710.9,0.01136847]
[1641045074838,4.30279233,3711.9,3710.9,0.01136847]
[1641045075238,1.24096333,3711.9,3710.9,0.01136847]
[1641045075443,5.10887145,3712.0,3711.0,0.67361]
[1641045075639,3.061829,3711.8,3711.1,2.28845529]
[1641045075840,3.061829,3711.8,3711.1,2.38516657]
[1641045076040,3.061829,3711.8,3711.2,0.0096632]
[1641045076240,4.40545113,3712.0,3711.2,0.0096632]
[1641045076442,4.40545113,3712.0,3711.3,1.15663257]
[1641045076640,4.40545113,3712.0,3711.3,3.49269358]
[1641045076841,4.38744828,3712.1,3711.3,3.79269358]
[1641045077277,3.061829,3712.1,3711.3,3.79269358]
[1641045077477,3.061829,3712.1,3711.4,0.67354]
[1641045077677,3.061829,3712.0,3711.5,2.34061916]
[1641045077877,3.061829,3712.0,3711.5,2.34857709]
[1641045078080,3.061829,3712.0,3711.6,0.00738951]
[1641045078279,1.35404631,3712.3,3711.6,0.00738951]
[1641045079182,3.061829,3712.2,3711.6,0.00738951]
[1641045079582,3.061829,3712.2,3711.6,0.68087951]
[1641045079778,3.061829,3712.2,3711.7,2.41172157]
[1641045079980,3.061829,3712.2,3711.7,2.41854266]
[1641045080179,3.061829,3712.2,3711.8,0.00625266]
[1641045080733,1.21367164,3712.4,3711.8,0.00625266]
[1641045081138,3.061829,3712.1,3711.8,0.00625266]
[1641045081532,3.061829,3712.3,3711.8,0.00625266]
[1641045081734,3.061829,3712.3,3711.6,0.00738951]
[1641045082132,2.961829,3712.3,3711.6,0.00738951]
[1641045082336,1.21367164,3712.4,3711.6,0.00738951]
[1641045086994,1.21367164,3712.4,3711.5,0.00795793]
[1641045087195,1.21367164,3712.4,3711.6,0.00738951]
[1641045087397,1.21367164,3712.4,3711.5,2.29259627]
[1641045087596,1.21367164,3712.4,3711.6,0.00738951]
[1641045087999,1.21367164,3712.4,3711.5,0.00795793]
[1641045088227,1.21367164,3712.4,3711.5,2.30511655]
[1641045088632,1.21367164,3712.4,3711.6,0.00738951]
[1641045089333,1.21367164,3712.4,3711.5,0.00795793]
[1641045089733,1.21367164,3712.4,3711.5,2.2844165]
[1641045089933,1.21367164,3712.4,3711.5,0.00795793]
[1641045090134,1.21367164,3712.4,3711.6,0.00738951]
[1641045090337,1.21367164,3712.4,3711.5,2.2881346]
[1641045090538,1.21367164,3712.4,3711.5,0.00795793]
[1641045090737,1.20503763,3711.8,3711.6,0.00738951]
[1641045090939,1.20503763,3711.8,3711.4,0.67354]
[1641045090940,1.20503763,3711.8,3711.5,2.29432112]
[1641045091137,1.20503763,3711.8,3711.5,0.00795793]
[1641045091339,1.20503763,3711.8,3711.6,0.00738951]
[1641045091536,1.20503763,3711.8,3711.5,2.30733416]
[1641045091738,1.20503763,3711.8,3711.5,0.00795793]
[1641045091975,1.20503763,3711.8,3711.6,0.00738951]
[1641045092175,1.20503763,3711.8,3711.5,0.68148793]
[1641045092379,1.20503763,3711.8,3711.6,0.00738951]
[1641045092978,1.20503763,3711.8,3711.6,0.01161216]
[1641045093377,1.20503763,3711.8,3711.7,0.00682109]
[1641045094381,0.06684156,3712.5,3711.7,0.00682109]
[1641045095182,0.7365,3712.8,3711.7,0.00682109]
[1641045095384,1.13638513,3712.3,3711.7,0.00682109]
[1641045095834,1.13638513,3712.3,3711.7,0.68031109]
[1641045096237,1.13638513,3712.3,3711.8,0.00625266]
[1641045096835,1.13638513,3712.3,3711.7,0.00682109]
[1641045097636,1.13638513,3712.3,3711.8,0.67348]
[1641045098036,1.13638513,3712.3,3711.9,0.00568424]
[1641045098536,1.13638513,3712.3,3711.9,0.00990669]
[1641045098940,1.13638513,3712.3,3712.0,0.00511582]
[1641045102197,3.06147389,3712.2,3712.0,0.00511582]
[1641045110933,1.34362213,3712.1,3712.0,0.00511582]
[1641045112134,3.06147389,3712.1,3712.0,0.00511582]
[1641045113636,4.06147389,3712.1,3712.0,0.00511582]
[1641045113834,8.00329507,3712.1,3712.0,0.00511582]
[1641045114235,5.41566897,3712.1,3712.0,0.00511582]
[1641045114534,4.06147389,3712.1,3712.0,0.00511582]
[1641045115528,6.69155704,3712.1,3712.0,0.00511582]
[1641045115727,4.06147389,3712.1,3712.0,0.00511582]
[1641045116730,5.86599365,3712.1,3712.0,0.00511582]
[1641045117133,5.86599365,3712.1,3711.9,0.00422245]
[1641045117134,4.7,3712.0,3711.9,3.827e-05]
[1641045117335,9.05644298,3712.0,3710.5,2.75312163]
[1641045117530,0.67393,3711.3,3710.5,2.75312163]
[1641045117730,1.36093,3711.3,3710.6,0.00795792]
[1641045117934,2.06093,3711.3,3710.6,0.00795792]
[1641045118131,0.3,3711.2,3710.6,0.00795792]
[1641045118354,1.75849749,3711.1,3710.6,0.00795792]
[1641045118562,0.67396,3710.9,3710.6,0.00795792]
[1641045118760,1.06096,3710.9,3710.6,0.00795792]
[1641045119160,1.06096,3710.9,3710.1,0.01080004]
[1641045119564,0.67396,3710.5,3710.1,0.01080004]
[1641045119767,1.3458114,3710.2,3710.1,0.01080004]
[1641045120165,1.3458114,3710.2,3709.7,0.01307374]
[1641045121766,3.06282563,3710.1,3709.7,0.01307374]
[1641045122188,3.06282563,3710.1,3709.6,0.01364216]
[1641045122389,3.06282563,3710.2,3709.7,2.75312163]
[1641045122787,3.06282563,3710.2,3709.8,0.01250531]
[1641045122985,1.08847924,3710.3,3709.8,2.76562694]
[1641045123390,1.08847924,3710.3,3709.9,0.01193689]
[1641045124192,1.08847924,3710.3,3709.9,0.0156295]
[1641045124593,1.08847924,3710.3,3710.0,0.01136847]
[1641045127337,0.7372,3710.7,3710.0,0.01136847]
[1641045127542,0.0633,3710.7,3710.0,0.01136847]
[1641045128340,0.0633,3710.7,3710.3,1.40896776]
[1641045128542,1.02770014,3711.1,3710.3,1.40896776]
[1641045128740,1.02770014,3711.1,3710.4,0.00909477]
[1641045129594,1.02770014,3711.1,3710.4,0.0148986]
[1641045130098,0.67379,3711.3,3710.5,0.00852635]
[1641045130300,0.70358056,3711.4,3710.5,0.00852635]
[1641045130500,3.7015,3711.6,3710.5,0.98532635]
[1641045130699,3.7015,3711.6,3710.6,2.45705222]
[1641045131000,3.7015,3711.6,3710.7,0.0073895]
[1641045131200,3.0786,3711.8,3710.7,0.0073895]
[1641045131201,1.21734698,3711.5,3710.7,0.0073895]
[1641045131400,1.21734698,3711.5,3710.7,0.6810195]
[1641045131801,1.21734698,3711.5,3710.8,0.00682108]
[1641045132500,1.21734698,3711.5,3710.8,2.68662317]
[1641045132901,1.21734698,3711.5,3710.9,0.00625265]
[1641045134846,1.21734698,3711.5,3710.5,0.00852635]
[1641045135047,1.21734698,3711.5,3711.0,0.00580312]
[1641045135448,1.21734698,3711.5,3711.1,0.00511581]
[1641045135449,1.89109698,3711.5,3711.1,0.00511581]
[1641045135950,3.06229967,3711.4,3711.1,0.00511581]
[1641045137804,0.67381,3711.3,3711.1,0.00511581]
[1641045148943,3.06245341,3711.2,3711.1,0.00511581]
[1641045150946,5.84359718,3711.2,3711.1,0.00511581]
[1641045151145,7.44359718,3711.2,3711.1,0.00511581]
[1641045158050,6.84359718,3711.2,3711.1,0.00511581]
[1641045158250,5.84359718,3711.2,3711.1,0.00511581]
[1641045159494,6.84359718,3711.2,3711.1,0.00511581]
[1641045161002,7.54722957,3711.2,3711.1,0.00511581]
[1641045163440,7.84722957,3711.2,3711.1,0.00511581]
[1641045163640,8.14722957,3711.2,3711.1,0.00511581]
[1641045164243,9.94964993,3711.2,3711.1,0.00511581]
[1641045165446,9.94964993,3711.2,3711.0,0.00580312]
[1641045165644,3.54766421,3711.1,3711.0,0.00580312]
[1641045165845,3.93466421,3711.1,3711.0,0.00580312]
[1641045166144,3.93466421,3711.1,3711.0,0.01148735]
[1641045166546,6.99711762,3711.1,3711.0,0.01148735]
[1641045166988,7.29711762,3711.1,3711.0,0.01148735]
[1641045167190,6.99711762,3711.1,3711.0,0.01148735]
[1641045170492,7.59711762,3711.1,3711.0,0.01148735]
[1641045175491,6.99711762,3711.1,3711.0,0.01148735]
[1641045176091,4.44945341,3711.1,3711.0,0.01148735]
[1641045176292,3.06245341,3711.1,3711.0,0.01148735]
[1641045179947,3.06245341,3711.3,3711.0,0.01148735]
[1641045180345,3.06245341,3711.3,3711.1,0.00511581]
[1641045188344,3.06245341,3711.3,3711.2,1.1597199]
[1641045188747,3.06245341,3711.3,3711.2,0.00454738]
[1641045189145,3.06245341,3711.3,3711.1,0.00511581]
[1641045192699,3.06245341,3711.3,3711.2,0.01066346]
[1641045193100,3.06245341,3711.3,3711.2,0.01521084]
[1641045201440,3.06245341,3711.3,3711.2,0.02285954]
[1641045223093,3.06245341,3711.3,3711.2,0.01831216]
[1641045227692,4.06245341,3711.3,3711.2,0.01831216]
[1641045228592,3.06245341,3711.3,3711.2,0.01831216]
[1641045229394,4.4067466,3711.3,3711.2,0.01831216]
[1641045231448,5.4067466,3711.3,3711.2,0.01831216]
[1641045232650,4.06245341,3711.3,3711.2,0.01831216]
[1641045233051,4.40711152,3711.3,3711.2,0.01831216]
[1641045234150,3.06245341,3711.3,3711.2,0.01831216]
[1641045243998,3.05241941,3711.3,3711.2,0.01831216]
[1641045244197,4.39791467,3711.3,3711.2,0.01831216]
[1641045246364,3.05241941,3711.3,3711.2,0.01831216]
[1641045252709,5.34257991,3711.3,3711.2,0.01831216]
[1641045253441,3.05241941,3711.3,3711.2,0.01831216]
[1641045253648,5.35630391,3711.3,3711.2,0.01831216]
[1641045254547,7.15872427,3711.3,3711.2,0.01831216]
[1641045254949,5.35630391,3711.3,3711.2,0.01831216]
[1641045256149,9.94991421,3711.3,3711.2,0.01831216]
[1641045256752,5.35630391,3711.3,3711.2,0.01831216]
[1641045259598,5.35630391,3711.3,3711.2,1.216e-05]
[1641045259599,11.24991421,3711.3,3711.2,1.216e-05]
[1641045259802,0.67397,3710.5,3709.7,0.22966641]
[1641045260202,0.67397,3710.5,3709.8,0.01250531]
[1641045260606,0.67397,3710.5,3709.6,0.01364216]
[1641045260865,0.00505,3710.0,3709.6,0.01364216]
[1641045262873,0.00505,3710.0,3709.1,0.01648428]
[1641045263070,0.67415,3709.6,3709.1,0.01648428]
[1641045264694,1.05621606,3708.7,3708.6,0.01932639]
[1641045265294,1.05621606,3708.7,3708.1,0.97416]
[1641045265295,1.05621606,3708.7,3708.2,0.02160009]
[1641045265902,1.05621606,3708.7,3708.2,6.20160009]
[1641045266298,1.05621606,3708.7,3708.3,0.02103166]
[1641045266700,0.06684623,3709.1,3708.3,0.02103166]
[1641045267702,0.06684623,3709.1,3708.3,0.02486124]
[1641045268101,0.06684623,3709.1,3708.4,0.02046324]
[1641045268363,1.22121665,3708.5,3708.4,0.02046324]
[1641045279696,1.22121665,3708.5,3708.4,0.02164922]
[1641045280503,0.06684654,3708.9,3708.4,0.02164922]
[1641045281002,0.06684654,3708.9,3708.5,0.01989482]
[1641045281204,0.67422,3709.0,3708.5,0.01989482]
[1641045283104,1.39723675,3708.7,3708.5,0.01989482]
[1641045291565,1.39723675,3708.7,3707.7,3.86812038]
[1641045291966,1.39723675,3708.7,3707.8,0.00397896]
[1641045293468,1.39723675,3708.7,3707.9,0.0036944]
[1641045293766,1.39723675,3708.7,3708.0,0.00284211]
[1641045299251,1.39723675,3708.7,3707.9,0.00148651]
[1641045299454,0.00341054,3708.6,3707.9,0.00148651]
[1641045299859,0.00284211,3708.5,3707.9,0.00148651]
[1641045300256,0.00227369,3708.4,3707.9,0.00148651]
[1641045300658,0.00170527,3708.3,3707.9,0.00148651]
[1641045301059,0.00113684,3708.2,3707.9,0.00148651]
[1641045303107,0.00113684,3708.2,3707.9,2.33107242]
[1641045303307,0.00113684,3708.2,3707.9,0.00148651]
[1641045303708,0.00113684,3708.2,3708.0,0.387]
[1641045303907,0.00113684,3708.2,3708.1,6.48419957]
[1641045304107,0.00113684,3708.2,3708.1,2.83419957]
[1641045304307,0.00113684,3708.2,3708.1,3.50826957]
[1641045306755,3.684e-05,3708.2,3708.1,20.64739802]
[1641045306956,3.684e-05,3708.2,3708.1,20.71331545]
[1641045307154,0.06684715,3709.2,3708.7,0.67391]
[1641045307355,0.06684715,3709.2,3708.8,16.127]
[1641045307559,0.00511581,3709.1,3708.9,0.687]
[1641045307757,0.00511581,3709.1,3709.0,1.32006183]
[1641045307955,0.06684715,3709.2,3709.0,2.00706183]
[1641045308157,0.06684715,3709.2,3709.0,1.36091]